bitfinex/quotes_SOLUSD_20241218
["timestamp","ask_amount","ask_price","bid_price","bid_amount"]
[1734563141383,22.70311642,205.29,205.22,22.70311642]
[1734563141583,22.70311642,205.29,205.21,0.5990772]
[1734563141787,22.70311642,205.25,205.21,0.5990772]
[1734563142002,22.70311642,205.23,205.21,0.5990772]
[1734563142496,22.70311642,205.22,205.21,0.5990772]
[1734563143277,23.58735996,205.22,205.21,0.5990772]
[1734563145383,20.0,205.18,205.04,100.0]
[1734563145609,10.1053,205.06,205.0,150.3200772]
[1734563145780,22.70311642,205.01,205.0,135.77714034]
[1734563146117,22.70311642,205.01,205.0,129.43664034]
[1734563146333,22.70311642,205.01,204.9,0.0245]
[1734563146334,60.46666215,205.01,204.9,0.0245]
[1734563146611,22.70311642,204.91,204.9,0.0245]
[1734563146780,22.70311642,204.91,204.81,22.70311642]
[1734563146979,22.70311642,204.91,204.84,20.0]
[1734563147181,22.70311642,204.89,204.84,20.0]
[1734563147408,23.58735996,204.91,204.82,22.70311642]
[1734563147605,23.58735996,204.91,204.85,20.0]
[1734563148101,0.88424354,204.9,204.86,20.0]
[1734563148299,0.88424354,204.9,204.86,7.88965254]
[1734563148505,0.88424354,204.9,204.89,37.16237094]
[1734563148806,0.88424354,204.9,204.8,20.5245]
[1734563149018,2.98171909,204.87,204.86,37.16237094]
[1734563149338,2.98171909,204.87,204.8,57.68687094]
[1734563149339,3.86596263,204.87,204.8,0.5245]
[1734563149484,0.88424354,204.86,204.85,37.16237094]
[1734563149787,0.88424354,204.86,204.8,0.5245]
[1734563150404,0.88424354,204.86,204.84,37.16237094]
[1734563150606,0.88424354,204.86,204.8,0.5245]
[1734563150828,0.88424354,204.86,204.82,37.16237094]
[1734563151124,0.88424354,204.86,204.8,0.5245]
[1734563151604,0.88424354,204.86,204.82,37.16237094]
[1734563151796,0.88424354,204.86,204.8,0.5245]
[1734563151982,0.88424354,204.86,204.82,37.16237094]
[1734563152186,0.88424354,204.86,204.8,0.5245]
[1734563152597,12.1925,205.05,204.8,0.5245]
[1734563152908,2.9208007,204.98,204.84,23.776884]
[1734563153111,2.9208007,204.98,204.8,0.5245]
[1734563153112,37.16237094,204.93,204.81,37.16237094]
[1734563153313,37.16237094,204.93,204.8,0.5245]
[1734563153314,37.16237094,204.82,204.8,0.5245]
[1734563153491,1.1,204.89,204.8,0.5245]
[1734563153689,19.535238,204.84,204.8,0.5245]
[1734563154015,37.16237094,204.85,204.8,0.5245]
[1734563154320,0.88424354,204.84,204.83,37.16237094]
[1734563155013,0.88424354,204.84,204.83,60.93925494]
[1734563155194,37.16237094,204.96,204.83,60.93925494]
[1734563155514,37.16237094,204.88,204.8,24.301384]
[1734563156010,0.88424354,204.95,204.83,37.16237094]
[1734563156188,37.16237094,204.94,204.87,37.16237094]
[1734563156392,0.88424354,204.95,204.87,37.16237094]
[1734563156600,0.88424354,204.95,204.81,0.12549]
[1734563156601,0.88424354,204.95,204.89,37.16237094]
[1734563156837,0.88424354,204.95,204.9,23.776884]
[1734563157192,0.88424354,204.95,204.87,37.16237094]
[1734563157394,0.88424354,204.95,204.88,23.776884]
[1734563157899,37.16237094,204.94,204.88,23.776884]
[1734563158105,0.88424354,204.95,204.8,0.5245]
[1734563158106,37.16237094,204.9,204.8,37.68687094]
[1734563158499,37.16237094,204.9,204.82,37.16237094]
[1734563158692,0.88424354,204.93,204.84,37.16237094]
[1734563158897,0.88424354,204.93,204.86,37.16237094]
[1734563159516,37.16237094,204.92,204.84,37.16237094]
[1734563159697,37.16237094,204.88,204.8,37.68687094]
[1734563160120,37.16237094,204.92,204.84,37.16237094]
[1734563160311,37.16237094,204.94,204.86,37.16237094]
[1734563160912,37.16237094,204.98,204.88,37.16237094]
[1734563161611,37.16237094,205.0,204.92,37.16237094]
[1734563161807,0.88424354,205.0,204.94,37.16237094]
[1734563162015,0.88424354,205.0,204.96,37.16237094]
[1734563162203,0.88424354,205.0,204.99,23.902374]
[1734563162407,37.16237094,205.13,205.05,37.16237094]
[1734563162602,0.88424354,205.12,205.07,37.16237094]
[1734563163117,37.16237094,205.09,204.99,41.13177094]
[1734563163300,37.16237094,205.06,204.99,41.13177094]
[1734563163496,37.16237094,205.08,205.01,37.16237094]
[1734563163702,37.16237094,205.1,205.0,37.16237094]
[1734563164414,37.16237094,205.1,205.02,37.16237094]
[1734563164612,0.88424354,205.12,205.03,20.0]
[1734563164812,0.88424354,205.12,205.08,37.16237094]
[1734563165023,37.16237094,205.09,205.02,37.16237094]
[1734563165203,1.61575674,205.08,205.0,37.16237094]
[1734563165398,0.88424354,205.07,205.02,37.16237094]
[1734563166111,0.88424354,205.07,204.87,312.0]
[1734563166112,37.16237094,205.05,204.82,36.6174]
[1734563166311,0.7315132,205.04,204.96,37.16237094]
[1734563170214,0.7315132,205.04,204.9,37.16237094]
[1734563170215,0.7315132,205.04,204.98,37.16237094]
[1734563170399,0.7315132,205.06,205.0,37.16237094]
[1734563170600,0.7315132,205.11,205.04,37.16237094]
[1734563170825,0.7315132,205.12,205.06,37.16237094]
[1734563171339,0.7315132,205.14,205.06,37.16237094]
[1734563172031,37.16237094,205.11,205.04,37.16237094]
[1734563172324,37.16237094,205.09,205.02,37.16237094]
[1734563172727,0.7315132,205.08,205.02,37.16237094]
[1734563172929,37.16237094,205.07,205.0,37.16237094]
[1734563173223,37.16237094,205.05,204.99,37.16237094]
[1734563173420,0.7315132,205.04,204.97,37.16237094]
[1734563175003,12.1894,205.1,204.9,40.06214609]
[1734563175004,0.7315132,205.09,205.03,37.16237094]
[1734563175212,37.16237094,205.13,205.05,37.16237094]
[1734563175509,0.7315132,205.19,205.01,10.2353]
[1734563175717,0.7315132,205.19,205.02,0.73122013]
[1734563176235,20.2309912,205.23,205.04,20.0]
[1734563176407,20.2309912,205.23,205.05,0.12549]
[1734563176609,37.16237094,205.18,205.11,37.16237094]
[1734563176807,0.7315132,205.23,205.13,37.16237094]
[1734563176808,37.16237094,205.2,205.13,37.16237094]
[1734563177524,37.16237094,205.17,205.09,37.16237094]
[1734563177701,37.16237094,205.19,205.11,37.16237094]
[1734563177906,37.89388414,205.18,205.11,37.16237094]
[1734563178516,0.7315132,205.18,205.11,37.16237094]
[1734563178847,12.182,205.22,205.15,37.16237094]
[1734563178848,37.89388414,205.22,205.15,37.16237094]
[1734563179000,24.16971216,205.43,205.1,37.16237094]
[1734563179001,37.16237094,205.25,205.17,37.16237094]
[1734563179206,37.89388414,205.24,205.17,37.16237094]
[1734563179455,37.16237094,205.18,204.91,12.2]
[1734563179630,37.16237094,205.12,205.03,37.16237094]
[1734563179943,37.16237094,205.12,205.05,37.16237094]
[1734563180313,37.16237094,205.14,205.05,37.16237094]
[1734563180521,37.89388414,205.16,205.09,37.16237094]
[1734563181342,37.89388414,205.16,205.01,13.16879197]
[1734563181551,37.89388414,205.16,205.07,37.16237094]
[1734563182216,37.16237094,205.2,205.12,37.16237094]
[1734563182416,37.16237094,205.22,205.14,37.16237094]
[1734563182729,0.7315132,205.21,205.14,37.16237094]
[1734563183312,0.7315132,205.21,205.19,37.16237094]
[1734563183519,0.7315132,205.27,205.19,37.16237094]
[1734563183818,0.7315132,205.29,205.22,37.16237094]
[1734563184332,37.16237094,205.28,205.2,37.16237094]
[1734563184527,0.7315132,205.27,205.2,37.16237094]
[1734563184943,37.16237094,205.3,205.22,37.16237094]
[1734563185254,0.7315132,205.29,205.22,37.16237094]
[1734563185725,0.7315132,205.29,205.15,7.91114188]
[1734563185726,37.16237094,205.28,205.2,37.16237094]
[1734563185915,37.16237094,205.24,205.16,37.16237094]
[1734563186118,37.16237094,205.18,205.1,37.16237094]
[1734563186561,0.7315132,205.17,205.1,37.16237094]
[1734563186891,37.16237094,205.18,205.1,37.16237094]
[1734563187222,37.16237094,205.2,205.12,37.16237094]
[1734563187958,37.16237094,205.22,205.14,37.16237094]
[1734563188264,23.776884,205.24,205.08,7.1801]
[1734563188265,37.16237094,205.24,205.16,37.16237094]
[1734563188553,0.7315132,205.23,205.16,37.16237094]
[1734563188731,37.16237094,205.22,205.14,37.16237094]
[1734563188945,37.16237094,205.24,205.16,37.16237094]
[1734563189663,0.7315132,205.23,205.16,37.16237094]
[1734563189864,37.16237094,205.24,205.11,0.7309678]
[1734563190169,37.16237094,205.22,205.14,37.16237094]
[1734563190514,37.16237094,205.2,205.12,37.16237094]
[1734563191104,12.1813,205.24,205.12,37.16237094]
[1734563191105,0.7315132,205.19,205.12,37.16237094]
[1734563191253,37.16237094,205.2,205.12,37.16237094]
[1734563191453,0.7315132,205.19,205.12,37.16237094]
[1734563191674,37.16237094,205.2,205.12,37.16237094]
[1734563191990,0.7315132,205.22,205.14,37.16237094]
[1734563191991,37.16237094,205.22,205.14,37.16237094]
[1734563193758,37.16237094,205.24,205.16,37.16237094]
[1734563194071,37.16237094,205.26,205.2,37.16237094]
[1734563194273,37.16237094,205.28,205.2,37.16237094]
[1734563194477,37.16237094,205.27,205.2,37.16237094]
[1734563194860,37.16237094,205.27,205.19,37.16237094]
[1734563195194,37.16237094,205.28,205.2,37.16237094]
[1734563195493,37.16237094,205.28,205.21,37.16237094]
[1734563195687,37.16237094,205.3,205.23,37.16237094]
[1734563195891,37.16237094,205.31,205.23,37.16237094]
[1734563196102,37.16237094,205.33,205.26,37.16237094]
[1734563196857,37.16237094,205.34,205.27,37.16237094]
[1734563197801,37.16237094,205.35,205.28,37.16237094]
[1734563198098,37.16237094,205.32,205.24,37.16237094]
[1734563198274,37.16237094,205.32,205.23,0.7304676]
[1734563198275,37.16237094,205.32,205.25,37.16237094]
[1734563198670,37.16237094,205.33,205.26,37.16237094]
[1734563199494,37.16237094,205.32,205.25,37.16237094]
[1734563202386,37.16237094,205.33,205.26,37.16237094]
[1734563204195,37.16237094,205.35,205.28,37.16237094]
[1734563207679,37.16237094,205.32,205.25,37.16237094]
[1734563207874,37.16237094,205.33,205.26,37.16237094]
[1734563208393,37.16237094,205.28,205.21,37.16237094]
[1734563208594,37.16237094,205.25,205.18,41.46307094]
[1734563208791,37.16237094,205.26,205.19,37.16237094]
[1734563209092,37.16237094,205.27,205.21,37.16237094]
[1734563209902,37.16237094,205.28,205.21,37.16237094]
[1734563210076,37.16237094,205.27,205.21,37.16237094]
[1734563210276,37.16237094,205.27,205.2,37.16237094]
[1734563210679,37.16237094,205.27,205.21,37.16237094]
[1734563211199,37.16237094,205.27,205.2,37.16237094]
[1734563211701,37.16237094,205.3,205.23,37.16237094]
[1734563211999,37.16237094,205.37,205.29,37.16237094]
[1734563212298,49.33527094,205.38,205.31,37.16237094]
[1734563212676,37.16237094,205.37,205.3,37.16237094]
[1734563212871,37.16237094,205.36,205.29,37.16237094]
[1734563213925,37.16237094,205.35,205.28,37.16237094]
[1734563214079,22.7766515,205.34,205.27,22.7766515]
[1734563215806,22.7766515,205.35,205.28,22.7766515]
[1734563216179,22.7766515,205.36,205.28,22.7766515]
[1734563217000,22.7766515,205.35,205.28,22.7766515]
[1734563217176,22.7766515,205.36,205.28,22.7766515]
[1734563217575,22.7766515,205.37,205.29,22.7766515]
[1734563217880,22.7766515,205.37,205.3,22.7766515]
[1734563218275,34.9495515,205.38,205.31,22.7766515]
[1734563218699,23.5081647,205.37,205.29,22.7766515]
[1734563219101,22.7766515,205.39,205.32,22.7766515]
[1734563219287,23.5081647,205.41,205.33,22.7766515]
[1734563219599,22.7766515,205.39,205.32,22.7766515]
[1734563219814,22.7766515,205.36,205.29,22.7766515]
[1734563219975,22.7766515,205.35,205.28,22.7766515]
[1734563221400,0.7315132,205.39,205.26,0.73054162]
[1734563221401,22.7766515,205.37,205.3,22.7766515]
[1734563221615,22.7766515,205.39,205.32,22.7766515]
[1734563223281,22.7766515,205.35,205.28,22.7766515]
[1734563223998,22.7766515,205.36,205.29,22.7766515]
[1734563224441,22.7766515,205.38,205.31,22.7766515]
[1734563224792,22.7766515,205.38,205.3,22.7766515]
[1734563225302,23.5081647,205.37,205.3,22.7766515]
[1734563225502,23.776884,205.36,205.3,22.7766515]
[1734563225881,0.7315132,205.37,205.31,22.7766515]
[1734563226086,34.9494515,205.38,205.31,22.7766515]
[1734563226411,22.7766515,205.36,205.27,22.7766515]
[1734563226583,22.7766515,205.36,205.28,22.7766515]
[1734563226793,22.7766515,205.38,205.3,22.7766515]
[1734563227001,23.5081647,205.37,205.3,22.7766515]
[1734563227220,23.5081647,205.37,205.29,22.7766515]
[1734563227688,22.7766515,205.37,205.29,22.7766515]
[1734563228196,22.7766515,205.35,205.27,22.7766515]
[1734563228615,12.1725,205.38,205.29,22.7766515]
[1734563228811,23.5081647,205.37,205.29,22.7766515]
[1734563229111,22.7766515,205.33,205.25,22.7766515]
[1734563232809,22.7766515,205.33,205.27,22.7766515]
[1734563232993,58.7277355,205.36,205.28,22.7766515]
[1734563234720,22.7766515,205.34,205.26,22.7766515]
[1734563235322,22.7766515,205.32,205.24,22.7766515]
[1734563235490,23.776884,205.29,205.22,22.7766515]
[1734563235798,22.7766515,205.28,205.21,22.7766515]
[1734563236001,46.5535355,205.29,205.21,22.7766515]
[1734563236214,46.5535355,205.29,205.22,22.7766515]
[1734563236689,22.7766515,205.29,205.22,22.7766515]
[1734563237013,22.7766515,205.3,205.23,22.7766515]
[1734563237210,23.5081647,205.32,205.25,22.7766515]
[1734563237393,12.1755,205.33,205.26,22.7766515]
[1734563237593,12.9070132,205.33,205.26,22.7766515]
[1734563238214,22.7766515,205.31,205.24,22.7766515]
[1734563238419,12.9070132,205.33,205.23,22.7766515]
[1734563238420,23.5081647,205.3,205.23,22.7766515]
[1734563238710,22.7766515,205.3,205.23,22.7766515]
[1734563238914,46.5535355,205.32,205.25,22.7766515]
[1734563239116,34.9521515,205.33,205.25,22.7766515]
[1734563239497,34.9521515,205.33,205.26,22.7766515]
[1734563239998,34.9521515,205.33,205.25,22.7766515]
[1734563240201,34.9521515,205.33,205.26,22.7766515]
[1734563240412,34.9503515,205.36,205.29,22.7766515]
[1734563240696,22.7766515,205.34,205.27,22.7766515]
[1734563240896,22.7766515,205.35,205.28,22.7766515]
[1734563241413,34.9503515,205.36,205.28,22.7766515]
[1734563243322,22.7766515,205.34,205.23,0.73047546]
[1734563243618,22.7766515,205.32,205.23,22.7766515]
[1734563245521,22.7766515,205.32,205.25,22.7766515]
[1734563246996,35.6836647,205.34,205.27,22.7766515]
[1734563247111,0.7315132,205.39,205.31,22.7766515]
[1734563247426,22.7766515,205.42,205.34,22.7766515]
[1734563247632,29.86486217,205.43,205.35,22.7766515]
[1734563247817,29.86486217,205.43,205.36,22.7766515]
[1734563248216,22.7766515,205.46,205.38,22.7766515]
[1734563248731,22.7766515,205.46,205.39,22.7766515]
[1734563248930,22.7766515,205.47,205.4,22.7766515]
[1734563249127,22.7766515,205.46,205.39,22.7766515]
[1734563250031,22.7766515,205.5,205.43,22.7766515]
[1734563250841,22.7766515,205.49,205.41,22.7766515]
[1734563251139,22.7766515,205.48,205.41,22.7766515]
[1734563251641,22.7766515,205.49,205.41,22.7766515]
[1734563251833,22.7766515,205.48,205.41,22.7766515]
[1734563252033,22.7766515,205.49,205.41,22.7766515]
[1734563252235,22.7766515,205.5,205.42,23.50660941]
[1734563253537,23.3757287,205.52,205.45,22.7766515]
[1734563253755,0.5990772,205.52,205.45,22.7766515]
[1734563255040,0.5990772,205.52,205.46,22.7766515]
[1734563256230,22.7766515,205.47,205.35,11.7296]
[1734563256433,35.942284,205.5,205.37,22.7766515]
[1734563256434,22.7766515,205.45,205.37,22.7766515]
[1734563256641,0.7315132,205.44,205.37,22.7766515]
[1734563256927,23.5081647,205.44,205.36,22.7766515]
[1734563257526,34.9457515,205.44,205.36,22.7766515]
[1734563258122,34.9457515,205.44,205.38,22.7766515]
[1734563258332,12.1691,205.44,205.38,22.7766515]
[1734563261765,22.7766515,205.46,205.38,22.7766515]
[1734563261938,34.9437515,205.48,205.4,22.7766515]
[1734563262253,12.1671,205.48,205.42,22.7766515]
[1734563264043,12.7635772,205.52,205.46,22.7766515]
[1734563264241,12.7635772,205.52,205.48,22.7766515]
[1734563264418,0.5990772,205.52,205.49,22.7766515]
[1734563264824,0.5990772,205.52,205.5,22.7766515]
[1734563267246,0.5990772,205.52,205.46,22.7766515]
[1734563267428,1.3305904,205.52,205.44,22.7766515]
[1734563267628,23.776884,205.51,205.46,22.7766515]
[1734563267823,0.5990772,205.52,205.46,22.7766515]
[1734563268052,0.5990772,205.52,205.48,22.7766515]
[1734563269652,0.5990772,205.52,205.5,22.7766515]
[1734563270749,0.5990772,205.52,205.43,0.72973582]
[1734563270750,0.5990772,205.52,205.51,23.50639485]
[1734563272432,0.5990772,205.52,205.51,23.63188485]
[1734563272735,34.9330515,205.66,205.51,23.63188485]
[1734563272736,12.1564,205.66,205.54,20.0]
[1734563272947,12.1564,205.66,205.61,22.7766515]
[1734563273752,23.776884,205.67,205.61,22.7766515]
[1734563274342,23.5081647,205.69,205.62,22.7766515]
[1734563274546,12.1548,205.68,205.62,22.7766515]
[1734563277469,24.3055,205.72,205.58,22.7766515]
[1734563277470,34.9325515,205.66,205.58,22.7766515]
[1734563277660,23.776884,205.65,205.59,22.7766515]
[1734563279161,23.776884,205.65,205.6,22.7766515]
[1734563279537,23.776884,205.65,205.59,22.7766515]
[1734563280056,23.776884,205.65,205.55,7.4069]
[1734563280246,23.776884,205.65,205.59,14.19042443]
[1734563280644,23.776884,205.65,205.53,27.49773465]
[1734563280645,37.96730843,205.63,205.53,4.5317]
[1734563280852,38.69882163,205.63,205.55,14.19042443]
[1734563281275,38.69882163,205.63,205.5,10.28584222]
[1734563281276,14.19042443,205.61,205.54,14.19042443]
[1734563281578,24.5083972,205.63,205.54,14.19042443]
[1734563281878,23.776884,205.63,205.56,14.19042443]
[1734563282035,23.776884,205.61,205.56,22.71034579]
[1734563282235,23.776884,205.61,205.54,22.71034579]
[1734563282976,34.86744579,205.64,205.56,22.71034579]
[1734563283165,47.21874299,205.63,205.56,22.71034579]
[1734563283474,22.71034579,205.62,205.55,22.71034579]
[1734563283773,0.7315132,205.61,205.55,22.71034579]
[1734563284662,23.776884,205.61,205.55,22.71034579]
[1734563285375,0.7315132,205.66,205.57,22.71034579]
[1734563285544,22.71034579,205.65,205.58,22.71034579]
[1734563285750,22.71034579,205.62,205.55,22.71034579]
[1734563286080,36.4626,205.69,205.55,22.71034579]
[1734563286081,22.71034579,205.63,205.55,22.71034579]
[1734563286376,23.44185899,205.62,205.55,22.71034579]
[1734563286574,0.7315132,205.62,205.55,22.71034579]
[1734563286864,23.776884,205.61,205.55,22.71034579]
[1734563287981,22.71034579,205.65,205.57,22.71034579]
[1734563288139,0.7315132,205.66,205.59,22.71034579]
[1734563288338,34.86564579,205.67,205.59,22.71034579]
[1734563288575,22.71034579,205.67,205.6,22.71034579]
[1734563288779,22.71034579,205.69,205.61,22.71034579]
[1734563289281,0.7315132,205.68,205.61,22.71034579]
[1734563289968,0.7315132,205.68,205.54,0.72939221]
[1734563289969,22.71034579,205.67,205.6,22.71034579]
[1734563290179,0.7315132,205.66,205.6,22.71034579]
[1734563290484,12.1553,205.67,205.61,22.71034579]
[1734563292875,12.1553,205.67,205.54,2.69972688]
[1734563292876,34.86564579,205.67,205.6,22.71034579]
[1734563293377,34.86564579,205.67,205.59,22.71034579]
[1734563293669,22.71034579,205.69,205.61,22.71034579]
[1734563293851,24.5083972,205.68,205.61,22.71034579]
[1734563295368,12.1553,205.67,205.61,22.71034579]
[1734563296346,35.59535899,205.71,205.63,22.71034579]
[1734563296545,23.776884,205.7,205.63,22.71034579]
[1734563297876,46.48722979,205.7,205.62,22.71034579]
[1734563298051,46.48722979,205.7,205.59,4.5304]
[1734563298052,23.776884,205.68,205.61,22.71034579]
[1734563298373,23.776884,205.7,205.63,22.71034579]
[1734563298374,22.71034579,205.7,205.63,22.71034579]
[1734563298558,23.776884,205.69,205.63,22.71034579]
[1734563299154,23.776884,205.69,205.62,22.71034579]
[1734563300267,22.71034579,205.68,205.61,22.71034579]
[1734563300442,22.71034579,205.66,205.59,27.24074579]
[1734563300648,23.776884,205.65,205.59,27.24074579]
[1734563301147,23.776884,205.66,205.59,27.24074579]
[1734563301471,22.71034579,205.67,205.59,27.24074579]
[1734563301947,22.71034579,205.67,205.6,22.71034579]
[1734563302147,14.18846601,205.67,205.6,14.18846601]
[1734563302357,37.96535001,205.68,205.6,14.18846601]
[1734563302559,37.96535001,205.68,205.61,14.18846601]
[1734563303080,14.18846601,205.7,205.62,14.18846601]
[1734563303321,14.18846601,205.7,205.59,5.25972312]
[1734563303322,14.18846601,205.71,205.63,14.18846601]
[1734563303490,14.18846601,205.7,205.63,14.18846601]
[1734563304213,14.18846601,205.7,205.59,5.25972312]
[1734563304384,14.18846601,205.7,205.62,14.18846601]
[1734563304585,14.18846601,205.7,205.63,14.18846601]
[1734563304786,14.18846601,205.71,205.63,14.18846601]
[1734563305414,14.18846601,205.72,205.64,14.18846601]
[1734563305717,14.18846601,205.72,205.59,5.25972312]
[1734563305718,14.78754321,205.73,205.65,14.18846601]
[1734563306203,14.78754321,205.73,205.66,14.18846601]
[1734563306904,0.5990772,205.73,205.68,14.18846601]
[1734563307086,1.9980013,205.88,205.72,14.18846601]
[1734563307293,0.7315132,205.87,205.8,14.18846601]
[1734563307605,14.18846601,205.88,205.8,14.18846601]
[1734563308102,14.18846601,205.88,205.81,14.18846601]
[1734563308299,7.08821067,205.89,205.84,14.18846601]
[1734563308506,14.91997921,205.91,205.84,14.18846601]
[1734563308675,14.91997921,205.92,205.84,14.18846601]
[1734563309079,0.5990772,205.94,205.88,14.18846601]
[1734563310588,0.5990772,205.94,205.9,14.18846601]
[1734563312111,0.5990772,205.94,205.93,14.18846601]
[1734563315120,0.5990772,205.94,205.93,14.91658559]
[1734563317476,0.5990772,205.94,205.93,26.72917559]
[1734563317715,12.1313,206.08,205.96,20.0]
[1734563318005,12.1313,206.08,206.01,14.18846601]
[1734563318896,28.23058908,206.12,206.04,14.18846601]
[1734563319094,26.31766601,206.12,206.04,14.18846601]
[1734563319290,26.31766601,206.12,206.05,14.18846601]
[1734563319491,1.3305904,206.15,206.08,14.18846601]
[1734563319695,1.3305904,206.15,206.02,0.72791023]
[1734563319696,0.5990772,206.15,206.1,14.18846601]
[1734563320210,0.5990772,206.15,206.09,14.18846601]
[1734563320578,0.5990772,206.15,206.14,14.18846601]
[1734563322915,0.5990772,206.15,206.05,4.452]
[1734563322916,0.5990772,206.15,206.12,14.18846601]
[1734563323424,0.5990772,206.15,206.13,14.18846601]
[1734563323593,0.5990772,206.15,206.12,14.18846601]
[1734563323791,0.5990772,206.15,206.11,14.18846601]
[1734563324124,0.5990772,206.15,206.11,22.58739477]
[1734563324411,0.5990772,206.15,206.12,22.58739477]
[1734563325817,0.5990772,206.15,206.11,22.58739477]
[1734563326509,0.5990772,206.15,206.12,22.58739477]
[1734563326715,0.5990772,206.15,206.06,0.72753109]
[1734563326716,0.5990772,206.15,206.11,22.58739477]
[1734563327703,0.5990772,206.15,206.12,22.58739477]
[1734563328499,0.5990772,206.15,206.11,22.58739477]
[1734563328700,22.58739477,206.12,206.04,22.58739477]
[1734563328914,46.36427877,206.08,206.0,22.58739477]
[1734563329116,22.58739477,206.06,205.99,7.2917]
[1734563329325,23.776884,206.08,205.99,7.2917]
[1734563330024,23.776884,206.11,205.99,7.2917]
[1734563330331,22.58739477,206.1,206.02,22.58739477]
[1734563330507,23.776884,206.09,206.02,22.58739477]
[1734563330709,23.776884,206.09,206.03,22.58739477]
[1734563331732,23.776884,206.09,206.04,22.58739477]
[1734563332029,46.36427877,206.1,206.03,22.58739477]
[1734563332230,46.36427877,206.1,206.04,22.58739477]
[1734563332231,23.776884,206.1,206.04,22.58739477]
[1734563332444,23.31890797,206.11,206.04,22.58739477]
[1734563332445,23.776884,206.11,206.04,22.58739477]
[1734563333429,47.09579197,206.11,206.04,22.58739477]
[1734563333628,46.36427877,206.11,206.04,22.58739477]
[1734563334107,46.36427877,206.11,206.03,22.58739477]
[1734563334307,22.58739477,206.1,206.03,22.58739477]
[1734563334831,47.09579197,206.09,206.01,22.58739477]
[1734563335427,47.09579197,206.09,206.02,22.58739477]
[1734563335629,46.36427877,206.09,206.02,22.58739477]
[1734563335824,46.36427877,206.09,206.01,22.58739477]
[1734563335825,0.7315132,206.08,206.01,22.58739477]
[1734563336012,23.776884,206.07,206.01,22.58739477]
[1734563336218,23.776884,206.07,206.02,22.58739477]
[1734563336615,23.776884,206.08,206.02,22.58739477]
[1734563336827,23.776884,206.08,206.01,22.58739477]
[1734563337613,46.36427877,206.07,206.0,22.58739477]
[1734563337815,23.776884,206.05,205.98,22.58739477]
[1734563338030,22.58739477,206.04,205.97,22.58739477]
[1734563338236,23.776884,206.05,205.98,22.58739477]
[1734563338932,22.58739477,206.08,205.97,0.7279911]
[1734563339152,22.58739477,206.09,206.02,22.58739477]
[1734563339433,23.18647197,206.15,206.08,22.58739477]
[1734563339814,0.5990772,206.15,206.1,22.58739477]
[1734563340129,0.5990772,206.15,206.07,0.72755438]
[1734563340325,0.5990772,206.15,206.09,20.0]
[1734563340517,0.5990772,206.15,206.14,22.58739477]
[1734563343014,0.7315132,206.26,206.17,20.0]
[1734563343219,22.58739477,206.29,206.21,22.58739477]
[1734563343440,22.58739477,206.27,206.21,22.58739477]
[1734563343634,0.7315132,206.34,206.21,22.58739477]
[1734563343934,22.58739477,206.29,206.21,22.58739477]
[1734563345039,22.58739477,206.26,206.18,42.58739477]
[1734563345342,22.58739477,206.26,206.15,8.01884582]
[1734563345343,22.58739477,206.23,206.15,29.87909477]
[1734563345525,23.776884,206.22,206.15,29.87909477]
[1734563346042,23.776884,206.23,206.16,22.58739477]
[1734563346338,22.58739477,206.24,206.16,22.58739477]
[1734563347421,22.58739477,206.24,206.17,22.58739477]
[1734563348517,22.58739477,206.21,206.14,22.58739477]
[1734563348743,22.58739477,206.19,206.11,22.58739477]
[1734563348938,22.58739477,206.17,206.09,33.65539477]
[1734563349141,6.958,206.24,206.07,22.58739477]
[1734563349142,22.58739477,206.15,206.07,22.58739477]
[1734563349363,46.36427877,206.18,206.1,22.58739477]
[1734563349519,0.7315132,206.19,206.04,7.51618976]
[1734563349520,22.58739477,206.19,206.11,22.58739477]
[1734563349839,22.58739477,206.18,206.11,22.58739477]
[1734563352466,22.58739477,206.16,206.09,22.58739477]
[1734563354023,22.58739477,206.18,206.1,22.58739477]
[1734563354219,6.958,206.24,206.11,0.72752818]
[1734563354220,22.58739477,206.21,206.11,0.72752818]
[1734563354454,22.58739477,206.21,206.14,22.58739477]
[1734563354956,0.7315132,206.23,206.11,22.58739477]
[1734563355126,22.58739477,206.17,206.1,22.58739477]
[1734563355557,22.58739477,206.18,206.11,22.58739477]
[1734563355725,22.58739477,206.19,206.12,22.58739477]
[1734563355921,23.776884,206.19,206.12,14.11497135]
[1734563356134,14.11497135,206.2,206.12,14.11497135]
[1734563356629,14.11497135,206.21,206.13,14.84248251]
[1734563356842,14.11497135,206.23,206.15,14.11497135]
[1734563357666,12.8521132,206.26,206.17,14.11497135]
[1734563357854,26.96708455,206.26,206.17,14.11497135]
[1734563358027,22.57488021,206.24,206.16,34.15428021]
[1734563358754,22.57488021,206.21,206.13,22.57488021]
[1734563359047,22.57488021,206.19,206.11,22.57488021]
[1734563359228,22.57488021,206.17,206.11,22.57488021]
[1734563359429,22.57488021,206.17,206.09,22.57488021]
[1734563360551,22.57488021,206.17,206.1,22.57488021]
[1734563361053,0.7315132,206.25,206.15,22.57488021]
[1734563361357,22.57488021,206.23,206.16,22.57488021]